bitfinex/quotes_ETHUSD_20220119
["timestamp","ask_amount","ask_price","bid_price","bid_amount"]
[1642552989678,0.455,3152.4,3152.1,0.00284212]
[1642552989870,0.455,3152.4,3151.8,3.02556029]
[1642552989871,1.5872404,3152.3,3151.8,3.02556029]
[1642552990071,2.0746046,3152.3,3151.8,0.00454739]
[1642552990270,2.0746046,3152.3,3151.9,0.00397897]
[1642552990470,2.0746046,3152.3,3151.5,1.59089564]
[1642552990471,0.79364,3152.1,3151.6,1.1915402]
[1642552990675,2.3809151,3152.1,3151.6,1.1915402]
[1642552990870,3.17449,3151.9,3151.7,0.00511582]
[1642552991073,3.47449,3151.9,3151.7,0.00511582]
[1642552991470,0.79362,3151.8,3151.7,0.00511582]
[1642552991875,0.79336,3152.3,3151.7,0.00511582]
[1642552992070,0.79336,3152.3,3151.9,1.31398207]
[1642552992270,0.79336,3152.3,3151.7,0.00511582]
[1642552992475,1.58676,3152.3,3152.0,0.00341054]
[1642552992675,1.58676,3152.3,3151.7,0.00511582]
[1642552992878,1.58676,3152.3,3151.7,1.59601146]
[1642552993075,1.58702,3152.2,3151.7,1.59601146]
[1642552993275,1.58702,3152.2,3151.8,1.14283439]
[1642552993524,0.3,3152.1,3151.8,0.00454739]
[1642552993723,7.03738,3152.1,3151.7,1.59089564]
[1642552993922,0.45613685,3152.0,3151.8,0.00454739]
[1642552994124,4.33737,3151.9,3151.4,1.59089564]
[1642552994322,2.34748581,3151.9,3151.4,1.59089564]
[1642552994526,1.09823739,3151.8,3151.6,1.14060085]
[1642552994726,1.13302857,3151.8,3151.6,1.14060085]
[1642552994925,0.00397896,3151.7,3151.6,1.14060085]
[1642552995226,0.00397896,3151.7,3151.2,3.9772391]
[1642552995426,0.79359,3151.6,3151.2,1.59089564]
[1642552995626,1.58736,3151.5,3151.2,1.59089564]
[1642552995825,0.00284212,3151.5,3151.2,1.59089564]
[1642552996028,0.00227369,3151.4,3151.2,1.59089564]
[1642552996326,0.02690048,3151.5,3151.3,1.30713177]
[1642552996526,2.40789048,3151.5,3151.3,1.30713177]
[1642552996727,0.7936,3151.4,3151.3,1.30713177]
[1642552997175,0.7936,3151.4,3151.1,1.59089564]
[1642552997176,1.88724,3151.4,3151.1,1.59089564]
[1642552997567,0.79537527,3151.3,3151.1,1.59089564]
[1642552997970,0.00113685,3151.2,3151.1,1.59089564]
[1642552998170,1.58862685,3151.2,3151.0,1.59089564]
[1642552998369,2.38241685,3151.2,3151.0,1.59089564]
[1642552998572,0.79374,3151.1,3151.0,1.59089564]
[1642552998772,2.68241685,3151.2,3151.0,1.59089564]
[1642552998773,1.09492685,3151.2,3151.0,1.59089564]
[1642552998973,0.79367,3151.1,3150.9,2.8056919]
[1642552999373,1.5873344,3151.1,3150.9,2.8056919]
[1642552999575,0.79492685,3151.2,3150.9,2.8056919]
[1642552999778,0.0123535,3151.0,3150.9,1.21479626]
[1642553001426,0.0123535,3151.0,3150.9,3.91479626]
[1642553001623,0.82049048,3151.5,3151.2,3.7519922]
[1642553002025,0.00113684,3151.4,3151.2,3.7519922]
[1642553002427,0.7936,3151.3,3151.2,3.7519922]
[1642553002627,1.5871935,3151.3,3151.2,3.7519922]
[1642553003028,0.00113684,3151.4,3151.2,4.93274085]
[1642553003227,2.85812068,3151.8,3151.2,4.93274085]
[1642553003428,2.89500321,3151.8,3151.2,4.93274085]
[1642553003628,0.00113685,3151.6,3151.2,4.93274085]
[1642553004027,0.00113685,3151.6,3151.3,1.59766648]
[1642553004227,0.00113685,3151.6,3151.4,1.13218631]
[1642553004427,0.79353,3151.5,3151.4,1.13218631]
[1642553004671,2.3806455,3151.5,3151.4,1.13218631]
[1642553005665,0.79353,3151.5,3151.4,5.42493334]
[1642553006667,0.79353,3151.5,3151.4,3.82726686]
[1642553008272,1.09353,3151.5,3151.4,3.82726686]
[1642553008522,1.39353,3151.5,3151.4,3.82726686]
[1642553009324,1.09353,3151.5,3151.4,3.82726686]
[1642553009525,1.39353,3151.5,3151.4,3.82726686]
[1642553009923,0.79353,3151.5,3151.4,3.82726686]
[1642553010123,3.99353,3151.5,3151.4,3.82726686]
[1642553010330,3.2,3151.5,3151.4,3.82726686]
[1642553010624,3.2,3151.5,3151.4,6.22362275]
[1642553011228,3.5,3151.5,3151.4,6.22362275]
[1642553011426,4.59358,3151.5,3151.4,6.22362275]
[1642553011626,3.99358,3151.5,3151.4,6.22362275]
[1642553011825,3.5,3151.5,3151.4,6.22362275]
[1642553012471,3.2,3151.5,3151.4,6.22362275]
[1642553012877,3.2,3151.5,3151.4,3.82726686]
[1642553013072,3.2,3151.5,3151.4,3.98536686]
[1642553013274,3.2,3151.5,3151.4,6.28536686]
[1642553013676,3.2,3151.5,3151.4,9.47217787]
[1642553014077,3.2,3151.5,3151.4,7.17217787]
[1642553014678,3.2,3151.5,3151.4,3.98536686]
[1642553014876,0.00113685,3151.6,3151.4,3.98536686]
[1642553014877,0.00113685,3151.6,3151.5,5.99883996]
[1642553015077,0.00113685,3151.6,3151.5,2.54883996]
[1642553015276,0.00113685,3151.6,3151.5,4.89883996]
[1642553015481,0.00113685,3151.6,3151.5,2.54883996]
[1642553016921,0.00113685,3151.6,3151.5,7.66037633]
[1642553017120,0.00113685,3151.6,3151.5,7.81847633]
[1642553017320,0.00113685,3151.6,3151.5,12.28053049]
[1642553018122,0.00113685,3151.6,3151.5,13.58053049]
[1642553018319,0.00113685,3151.6,3151.5,12.28053049]
[1642553018523,0.00113685,3151.6,3151.5,9.86648345]
[1642553018938,4.62333058,3152.7,3152.5,1.20438621]
[1642553019124,1.58646,3152.7,3152.5,1.20438621]
[1642553019324,0.00568424,3152.6,3152.5,1.20438621]
[1642553019972,0.7933,3152.5,3152.1,1.22836117]
[1642553020175,0.79332,3152.4,3152.1,1.22836117]
[1642553020373,0.79786739,3152.4,3152.1,1.22836117]
[1642553020573,0.00397897,3152.3,3152.1,1.22836117]
[1642553020975,2.9,3152.6,3152.3,1.39663861]
[1642553021379,0.00511581,3152.5,3152.3,1.39663861]
[1642553021775,2.9,3152.6,3152.3,1.39663861]
[1642553021776,0.00454739,3152.4,3152.3,1.39663861]
[1642553025929,0.00454739,3152.4,3152.3,3.00527507]
[1642553028373,0.79789739,3152.4,3152.3,1.60863646]
[1642553029076,0.00454739,3152.4,3152.3,1.60863646]
[1642553029276,0.00454739,3152.4,3152.2,1.60863646]
[1642553029477,0.79784739,3152.4,3152.2,3.13796754]
[1642553029679,0.00397897,3152.3,3152.2,1.60863646]
[1642553030077,0.00397897,3152.3,3152.0,2.41543014]
[1642553030078,0.00397897,3152.3,3152.1,2.41315644]
[1642553030278,0.00397897,3152.3,3152.1,2.42451738]
[1642553030477,0.00341054,3152.2,3152.1,2.50939688]
[1642553030921,0.00341054,3152.2,3152.1,0.09624044]
[1642553031321,0.79680054,3152.2,3152.1,0.09624044]
[1642553031527,1.09680054,3152.2,3152.1,0.09624044]
[1642553033428,0.30341054,3152.2,3152.1,0.09624044]
[1642553033630,0.00341054,3152.2,3152.1,0.09624044]
[1642553036601,0.00341054,3152.2,3152.1,2.79100814]
[1642553037003,1.84020054,3152.3,3152.1,4.18134302]
[1642553037204,1.84020054,3152.3,3152.1,4.18389772]
[1642553038004,1.04681054,3152.3,3152.2,2.6947677]
[1642553038305,0.74681054,3152.3,3152.2,2.6947677]
[1642553038527,2.14018054,3152.3,3152.2,2.6947677]
[1642553038731,1.84018054,3152.3,3152.2,2.6947677]
[1642553038928,2.14018054,3152.3,3152.2,2.6947677]
[1642553040130,1.84018054,3152.3,3152.2,2.6947677]
[1642553042973,4.87705112,3152.3,3152.2,2.6947677]
[1642553043173,4.87705112,3152.3,3152.0,0.0022737]
[1642553043174,5.15,3152.2,3152.0,0.0022737]
[1642553043379,5.16256764,3152.1,3152.0,0.0022737]
[1642553043675,5.16256764,3152.1,3151.7,2.41315644]
[1642553043676,4.5,3152.0,3151.7,2.41315644]
[1642553043879,6.08731,3152.0,3151.7,2.41565994]
[1642553044076,6.08731,3152.0,3151.5,5.76638188]
[1642553044077,4.9,3151.8,3151.5,5.76638188]
[1642553044378,4.0,3151.7,3151.6,0.00113685]
[1642553044576,4.3,3151.7,3151.6,0.00113685]
[1642553044876,4.3,3151.7,3151.3,0.00284212]
[1642553044877,7.67774,3151.7,3151.3,0.00284212]
[1642553045078,2.584,3151.6,3151.3,0.00284212]
[1642553045278,7.176195,3151.6,3151.3,0.00284212]
[1642553045479,0.01212832,3151.4,3151.2,3.808e-05]
[1642553045678,2.59959832,3151.4,3151.2,3.808e-05]
[1642553046163,3.39333832,3151.4,3151.2,3.808e-05]
[1642553046363,4.39377,3151.3,3151.2,3.808e-05]
[1642553046565,5.99377,3151.3,3151.2,3.808e-05]
[1642553046762,5.99377,3151.3,3151.1,1.13947406]
[1642553046763,5.15,3151.2,3151.0,0.02898642]
[1642553046964,5.455,3151.1,3151.0,0.02898642]
[1642553047164,5.755,3151.1,3151.0,0.02898642]
[1642553047362,5.755,3151.1,3150.6,1.61780319]
[1642553047363,5.7439777,3151.0,3150.6,1.61780319]
[1642553047565,5.7439777,3151.0,3150.6,1.62103169]
[1642553047566,1.755,3150.9,3150.6,1.62103169]
[1642553047763,1.8328384,3150.9,3150.7,0.00341054]
[1642553047965,1.8328384,3150.9,3150.6,0.00813168]
[1642553047966,4.9,3150.8,3150.6,0.00813168]
[1642553048164,3.8,3150.7,3150.6,0.00813168]
[1642553048365,4.1,3150.7,3150.6,0.00813168]
[1642553048563,4.1,3150.7,3150.3,0.0017785]
[1642553048564,5.15,3150.6,3150.3,0.0017785]
[1642553048763,7.1752,3150.6,3150.4,0.00345466]
[1642553048962,3.65,3150.5,3150.4,0.00345466]
[1642553049165,4.65,3150.5,3150.4,0.00345466]
[1642553049365,8.04470141,3150.5,3150.4,0.00345466]
[1642553049676,4.28796,3150.4,3149.5,0.0017785]
[1642553049882,4.28796,3150.4,3149.7,0.0024567]
[1642553049883,0.79401,3150.1,3149.7,0.0024567]
[1642553050082,0.3,3150.0,3149.7,0.0024567]
[1642553050281,1.39404,3150.0,3149.7,0.0024567]
[1642553050483,1.58821,3149.9,3149.7,0.0024567]
[1642553050782,2.59311,3149.9,3149.7,0.0024567]
[1642553052584,2.59311,3149.9,3149.8,1.47581054]
[1642553053286,5.6881002,3149.9,3149.7,0.0024567]
[1642553053533,5.6881002,3149.9,3149.6,0.00846213]
[1642553053534,6.16229006,3149.8,3149.6,0.00846213]
[1642553053734,6.16229006,3149.8,3149.6,0.01156873]
[1642553053735,7.71152886,3149.8,3149.6,0.01156873]
[1642553053934,7.74568076,3149.8,3149.5,0.0017785]
[1642553054136,4.64425,3149.6,3149.5,0.01516378]
[1642553054338,1.24925,3149.6,3149.5,0.01516378]
[1642553054534,1.24925,3149.6,3149.5,0.01630063]
[1642553054936,3.54925,3149.6,3149.5,0.01630063]
[1642553055138,3.54925,3149.6,3149.1,0.0072951]
[1642553055139,5.15,3149.5,3149.1,0.0072951]
[1642553055340,5.15,3149.5,3149.2,0.0029]
[1642553055341,0.01252043,3149.3,3149.2,0.0029]
[1642553055536,5.15,3149.1,3148.3,2.4020644]
[1642553055737,0.455,3149.0,3148.3,2.4020644]
[1642553055937,3.0437244,3149.0,3148.4,0.00625266]
[1642553056138,5.75,3148.9,3148.4,1.03632314]
[1642553056337,2.04364,3148.8,3148.4,1.03632314]
[1642553056537,1.89091369,3148.8,3148.4,4.13131334]
[1642553056737,0.00170527,3148.7,3148.4,1.03632314]
[1642553056939,0.36190105,3148.6,3148.4,1.03632314]
[1642553057180,0.6630379,3148.6,3148.4,1.03632314]
[1642553057379,0.3630379,3148.6,3148.4,1.03632314]
[1642553057682,1.49182215,3148.6,3148.4,1.03632314]
[1642553057881,3.08056215,3148.6,3148.4,1.03632314]
[1642553058487,0.7942184,3149.1,3148.6,5.18797684]
[1642553058686,0.79421,3149.2,3148.7,3.07136922]
[1642553058687,1.0,3149.2,3148.7,3.07136922]
[1642553058887,0.00170527,3148.9,3148.6,1.08797684]
[1642553059288,0.00113684,3148.8,3148.6,1.08797684]
[1642553059488,0.00113684,3148.8,3148.7,1.20147804]
[1642553059687,0.00284211,3149.1,3148.7,1.20147804]
[1642553059998,0.00227369,3149.0,3148.7,1.20147804]
[1642553060386,0.00397896,3149.3,3148.7,1.20147804]
[1642553060788,0.00341054,3149.2,3148.7,1.20147804]
[1642553061230,2.90284211,3149.1,3148.7,1.20147804]
[1642553061633,0.00227369,3149.0,3148.7,1.20147804]
[1642553062634,1.09649369,3149.0,3148.7,1.20147804]
[1642553062836,1.59071369,3149.0,3148.7,1.20147804]
[1642553063034,1.89071369,3149.0,3148.7,1.20147804]
[1642553063637,1.59071369,3149.0,3148.7,1.20147804]
[1642553063836,1.89071369,3149.0,3148.8,2.69702861]
[1642553064036,1.89071369,3149.0,3148.8,4.06762268]
[1642553064436,0.30227369,3149.0,3148.8,4.06762268]
[1642553065085,0.30227369,3149.0,3148.9,2.69702861]
[1642553067786,0.30227369,3149.0,3148.9,2.59702861]
[1642553068529,0.60227369,3149.0,3148.9,2.59702861]
[1642553068730,0.30227369,3149.0,3148.9,2.59702861]
[1642553070433,0.00227369,3149.0,3148.9,2.59702861]
[1642553072881,0.00227369,3149.0,3148.9,4.85770187]
[1642553073081,0.00227369,3149.0,3148.9,2.59702861]
[1642553073682,0.00227369,3149.0,3148.9,6.59702861]
[1642553073883,0.00227369,3149.0,3148.9,6.75512861]
[1642553074083,3.7144,3149.8,3149.2,2.85100222]
[1642553074282,0.3,3149.8,3149.6,1.260198]
[1642553074485,0.00397897,3149.7,3149.6,1.260198]
[1642553075184,0.79395,3149.8,3149.6,1.260198]
[1642553076034,0.79395,3149.8,3149.6,2.45382033]
[1642553077937,1.09395,3149.8,3149.6,2.45382033]
[1642553084256,0.7939,3150.2,3149.6,2.45382033]
[1642553084459,3.4594697,3150.4,3149.6,2.45382033]
[1642553084656,0.00227369,3150.1,3149.6,2.45382033]
[1642553085057,0.00170527,3150.0,3149.7,2.75587303]
[1642553085360,1.86918949,3150.4,3149.6,2.45382033]
[1642553085361,0.00113684,3149.9,3149.6,2.45382033]
[1642553085757,0.79385,3150.2,3149.6,2.45382033]
[1642553085956,0.79385,3150.2,3149.6,1.19362233]
[1642553086155,1.58771,3150.2,3149.6,1.19362233]
[1642553087375,1.58771,3150.2,3149.7,1.31439792]
[1642553087774,2.3816,3150.2,3149.7,1.31439792]
[1642553087978,1.58771,3150.2,3149.7,1.31439792]
[1642553088377,1.58771,3150.2,3149.8,2.69667503]
[1642553090678,2.38159,3150.2,3149.8,2.69667503]
[1642553093331,1.58771,3150.2,3149.8,2.69667503]
[1642553094782,0.79385,3150.2,3149.8,2.69667503]
[1642553096387,1.58772,3150.2,3149.8,2.69667503]
[1642553097289,1.58772,3150.2,3149.8,4.29134259]
[1642553097792,0.79391,3150.1,3149.8,4.29134259]
[1642553098190,0.00170527,3150.0,3149.8,2.69667503]
[1642553098437,1.58963527,3150.0,3149.8,2.69667503]
[1642553098629,0.00113684,3149.9,3149.8,2.69667503]
[1642553099130,0.79514684,3149.9,3149.6,1.19362233]
[1642553099331,0.79412,3149.8,3149.6,1.19362233]
[1642553099530,1.09412,3149.8,3149.6,1.19362233]
[1642553100232,1.8882284,3149.8,3149.6,1.19362233]
[1642553100433,1.09412,3149.8,3149.6,1.19362233]
[1642553102036,1.584,3150.6,3149.7,8.39424436]
[1642553102286,3.85748602,3150.7,3149.8,0.06264082]
[1642553102287,0.08138602,3150.7,3149.8,0.06264082]
[1642553102487,0.00113685,3150.1,3149.7,8.8503812]
[1642553102686,0.79371,3150.5,3149.8,1.0]
[1642553102886,0.79371,3150.5,3150.2,1.23962895]
[1642553103087,0.00284212,3150.4,3150.2,1.23962895]
[1642553103490,0.0022737,3150.3,3150.2,1.23962895]
[1642553104091,0.0022737,3150.3,3150.2,2.45719376]
[1642553104593,0.0022737,3150.3,3150.2,1.21756481]
[1642553107326,1.58786,3150.2,3149.7,0.00113684]
[1642553107525,1.58785,3150.1,3149.7,0.00113684]
[1642553108126,0.00170527,3150.2,3149.7,0.00113684]
[1642553108326,0.00170527,3150.2,3149.9,1.19564307]
[1642553108530,0.00170527,3150.2,3149.8,1.30638447]
[1642553109330,0.02581462,3150.0,3149.8,1.30638447]
[1642553109530,0.8455238,3150.0,3149.8,1.30638447]
[1642553110177,0.0516338,3150.0,3149.8,1.30638447]
[1642553110579,0.0516338,3150.0,3149.9,5.81476636]
[1642553110979,0.12724682,3150.0,3149.9,2.71476636]
[1642553111878,0.12724682,3150.0,3149.8,1.30638447]
[1642553111879,0.12724682,3150.0,3149.8,2.90105203]
[1642553113749,0.12724682,3150.0,3149.9,5.24466756]
[1642553114847,0.12724682,3150.0,3149.9,5.40276756]
[1642553115449,0.12724682,3150.0,3149.9,5.24466756]
[1642553116451,0.12724682,3150.0,3149.9,8.1345504]
[1642553116653,0.00170527,3150.2,3150.0,5.15]
[1642553116851,0.00170527,3150.2,3150.1,8.52635258]
[1642553117047,0.00170527,3150.2,3150.1,8.68445258]
[1642553117280,0.00170527,3150.2,3150.1,8.03814888]
[1642553117882,0.00170527,3150.2,3149.9,0.13819997]
[1642553118485,0.00170527,3150.2,3149.9,3.34614732]
[1642553118685,0.00170527,3150.2,3149.9,3.50424732]
[1642553119288,0.00170527,3150.2,3150.1,6.76485371]
[1642553119889,0.00170527,3150.2,3150.1,6.92295371]
[1642553120088,0.00170527,3150.2,3150.1,8.00502493]
[1642553121138,0.00170527,3150.2,3150.1,10.4273055]
[1642553121333,0.00170527,3150.2,3150.1,5.2773055]
[1642553121533,0.00170527,3150.2,3150.1,5.1192055]
[1642553122534,0.00170527,3150.2,3150.1,5.2773055]
[1642553122936,0.00170527,3150.2,3150.1,0.1581]
[1642553123138,0.00170527,3150.2,3150.1,4.6581]
[1642553123738,0.00170527,3150.2,3150.1,9.7773055]
[1642553123940,0.00170527,3150.2,3150.1,5.1192055]
[1642553124542,0.00170527,3150.2,3150.1,2.69692493]
[1642553124781,0.00170527,3150.2,3150.1,2.85502493]
[1642553125182,0.00170527,3150.2,3150.1,5.70502493]
[1642553125381,0.00170527,3150.2,3150.1,3.0081]
[1642553126082,0.00170527,3150.2,3150.1,8.01306636]
[1642553126381,0.00170527,3150.2,3150.1,8.41242193]
[1642553127286,0.00170527,3150.2,3150.1,8.41721717]
[1642553127984,0.00170527,3150.2,3150.1,10.83949774]
[1642553128184,0.47320038,3150.9,3150.1,10.83949774]
[1642553128185,0.47320038,3150.9,3150.2,5.15]
[1642553128436,0.47320038,3150.9,3150.4,1.21861728]
[1642553128631,0.0022737,3150.6,3150.5,9.4464179]
[1642553128831,0.0022737,3150.6,3150.5,6.55647]
[1642553129032,0.0022737,3150.6,3150.5,10.9045179]
[1642553129232,0.0022737,3150.6,3150.5,11.1018179]
[1642553129432,0.0022737,3150.6,3150.5,12.53861849]
[1642553130334,0.0022737,3150.6,3150.5,15.23554342]
[1642553130533,0.00180738,3151.3,3150.8,0.79336]
[1642553130734,0.00180738,3151.3,3151.2,1.4099924]
[1642553131134,0.00180738,3151.3,3151.2,7.43735371]
[1642553131733,0.00180738,3151.3,3151.2,7.59545371]
[1642553132178,0.00180738,3151.3,3151.2,10.29237864]
[1642553132679,0.00180738,3151.3,3151.2,2.85502493]
[1642553133080,0.00180738,3151.3,3151.2,2.69692493]
[1642553133883,0.00180738,3151.3,3151.1,2.69692493]
[1642553134286,0.00341054,3151.2,3151.1,2.69692493]
[1642553136128,0.00341054,3151.2,3150.9,1.30327603]
[1642553136527,0.00284211,3151.1,3150.9,1.30327603]
[1642553137028,0.00227369,3151.0,3150.9,1.30327603]
[1642553137530,0.00227369,3151.0,3150.9,2.44763328]
[1642553137927,0.00227369,3151.0,3150.9,7.05573328]
[1642553138733,0.00227369,3151.0,3150.9,7.81073328]
[1642553138932,0.00227369,3151.0,3150.9,9.90550328]
[1642553139532,0.00227369,3151.0,3150.9,9.11213328]
[1642553139977,0.00227369,3151.0,3150.9,7.81213328]
[1642553140379,0.00227369,3151.0,3150.9,8.81073328]
[1642553141479,0.00227369,3151.0,3150.9,11.21541641]
[1642553142381,0.00227369,3151.0,3150.9,9.60410328]
[1642553144040,0.00227369,3151.0,3150.9,8.81073328]
[1642553144441,0.00227369,3151.0,3150.9,3.06073328]
[1642553144740,0.00227369,3151.0,3150.9,1.30245725]
[1642553144940,0.00227369,3151.0,3150.7,1.61131313]
[1642553145345,0.00180738,3151.3,3150.9,3.2081]
[1642553145542,0.79361,3151.2,3150.9,0.1581]
[1642553145742,0.3,3151.1,3150.7,1.61131313]
[1642553145942,1.09365,3151.1,3150.7,1.61131313]
[1642553146142,0.00227369,3151.0,3150.6,1.12082698]
[1642553146344,0.00227369,3151.0,3150.7,0.1581]
[1642553146541,0.00170527,3150.9,3150.6,1.12082698]
[1642553146744,0.00170527,3150.9,3150.6,1.27892698]
[1642553146943,0.00113684,3150.8,3150.6,1.27892698]
[1642553147381,0.00180738,3151.3,3150.6,1.27892698]
[1642553147382,0.00227369,3151.0,3150.6,1.27892698]
[1642553147782,0.00170527,3150.9,3150.6,1.27892698]
[1642553147986,0.00170527,3150.9,3150.8,4.1581]
[1642553148185,0.00180738,3151.3,3150.8,4.1581]
[1642553148684,0.00341054,3151.2,3150.8,4.1581]
[1642553148885,0.00341054,3151.2,3150.8,0.1581]
[1642553149085,0.00180738,3151.3,3150.8,0.1581]
[1642553149086,0.00284211,3151.1,3150.8,0.1581]
[1642553149290,0.00284211,3151.1,3150.4,1.61131313]
[1642553149486,0.00227369,3151.0,3150.4,1.61131313]
[1642553149886,0.00170527,3150.9,3150.4,1.61131313]
[1642553150087,1.58923527,3150.9,3150.4,1.61131313]
[1642553150286,0.00113684,3150.8,3150.4,1.61131313]
[1642553150496,0.79493684,3150.8,3150.4,1.61131313]
[1642553150687,0.79493684,3150.8,3150.2,0.1581]
[1642553151130,0.79493684,3150.8,3150.3,0.00170527]
[1642553152732,2.06909623,3150.8,3150.3,2.69864531]
[1642553152936,3.98749959,3150.8,3150.3,2.69864531]
[1642553153134,4.78141769,3150.8,3150.4,0.00113685]
[1642553153334,1.58789,3150.7,3150.4,0.00113685]
[1642553153737,3.13875141,3150.6,3150.4,0.00113685]
[1642553153936,3.13875141,3150.6,3150.2,0.0022737]
[1642553153937,0.79403,3150.5,3150.2,0.0022737]
[1642553155189,0.79403,3150.5,3150.0,0.00341054]
[1642553155990,4.01312742,3150.4,3150.0,0.00341054]
[1642553156190,0.79406,3150.3,3150.0,0.00341054]
[1642553157190,1.79406,3150.3,3150.0,1.37309941]
[1642553157590,1.79406,3150.3,3150.1,0.00284212]
[1642553158192,1.79406,3150.3,3149.5,0.00625266]
[1642553158193,0.7940343,3150.2,3149.5,0.00625266]
[1642553158443,0.79402,3150.0,3149.5,0.00625266]
[1642553158636,3.96966187,3150.0,3149.5,0.00625266]
[1642553159133,1.0,3149.9,3149.5,0.00625266]
[1642553159533,0.79419,3149.8,3149.5,0.00625266]
[1642553159734,4.7710653,3149.8,3149.5,0.00625266]
[1642553159933,4.7710653,3149.8,3149.6,2.69694004]
[1642553160136,8.25516181,3149.7,3149.6,2.69694004]
[1642553161235,4.9,3149.7,3149.6,2.69694004]
[1642553162036,4.9,3149.7,3149.3,2.69694004]
[1642553162281,0.79415,3149.6,3149.3,2.69694004]
[1642553162481,2.5883134,3149.6,3149.4,0.00682108]
[1642553163689,2.5883134,3149.6,3149.2,2.85100222]
[1642553163690,3.79421,3149.4,3149.3,0.00738951]
[1642553164286,7.02734177,3149.4,3149.3,0.00738951]
[1642553164488,8.02734177,3149.4,3149.3,0.00738951]
[1642553164787,8.02734177,3149.4,3149.3,2.70520112]
[1642553165586,8.02734177,3149.4,3149.3,0.00738951]
[1642553166241,4.79421,3149.4,3149.3,0.00738951]
[1642553166436,1.79421,3149.4,3149.3,0.00738951]
[1642553166638,0.79421,3149.4,3149.3,0.00738951]
[1642553166837,1.79421,3149.4,3149.3,0.00738951]
[1642553167037,0.79421,3149.4,3149.3,0.00738951]
[1642553167236,1.79421,3149.4,3149.3,0.00738951]
[1642553167637,3.59421,3149.4,3149.3,0.00738951]
[1642553167837,4.59421,3149.4,3149.3,0.00738951]
[1642553169440,1.79421,3149.4,3149.3,0.00738951]
[1642553171692,4.09421,3149.4,3149.3,0.00738951]
[1642553171892,3.65,3149.3,3149.2,1.15219173]
[1642553172192,4.65,3149.3,3149.2,1.15219173]
[1642553172392,7.6997914,3149.3,3149.2,1.10129776]
[1642553172594,18.46,3149.1,3149.0,0.005773]
[1642553172795,19.70949,3149.1,3149.0,0.005773]
[1642553172992,5.1,3149.0,3148.0,3.22431693]
[1642553173193,19.7094742,3148.9,3148.0,3.22431693]
[1642553173442,0.37360604,3148.5,3148.3,0.00397896]
[1642553174636,5.89453,3148.4,3148.3,0.00397896]
[1642553174836,3.9,3148.3,3148.0,1.5630038]
[1642553175036,4.9,3148.3,3148.0,1.5630038]
[1642553175238,4.05,3148.2,3147.6,0.127186]
[1642553175439,2.53704144,3148.1,3147.6,0.127186]
[1642553175642,19.92797156,3148.1,3147.7,0.00227369]
[1642553175840,1.58949,3148.0,3147.7,0.00227369]
[1642553176643,5.1,3147.9,3147.2,3.02126789]
[1642553176840,2.38432,3147.8,3147.2,1.67497262]
[1642553177040,4.7,3147.7,3147.2,1.62724632]
[1642553177286,4.7,3147.7,3146.9,2.4670197]
[1642553177287,5.15,3147.6,3146.9,2.4670197]
[1642553177487,1.00170527,3147.6,3146.9,2.4670197]
[1642553177686,0.7947384,3147.7,3147.0,0.00170527]
[1642553177687,0.00113685,3147.5,3147.0,0.00170527]
[1642553177889,0.7947,3147.4,3147.0,0.00170527]
[1642553178688,0.7947,3147.4,3147.0,1.14205247]
[1642553179088,0.7947,3147.4,3147.1,0.00113684]
[1642553179290,0.7947,3147.4,3147.2,1.30451615]
[1642553179688,1.24114445,3147.5,3147.2,1.30451615]
[1642553180087,2.24114445,3147.5,3147.2,1.30451615]
[1642553180294,0.7947,3147.4,3147.2,1.30451615]
[1642553180689,0.7947,3147.4,3147.1,0.00113684]
[1642553181734,0.7947,3147.4,3147.3,1.48668064]
[1642553182734,1.58570527,3147.6,3147.3,1.48668064]
[1642553182933,0.00170527,3147.6,3147.3,1.48668064]
[1642553183133,0.13819997,3148.1,3147.4,0.03423128]
[1642553183134,0.00113685,3147.5,3147.4,0.03423128]
[1642553183335,0.00113685,3147.5,3147.3,1.48668064]
[1642553183739,1.1732,3148.3,3147.9,1.44303616]
[1642553183939,0.79451,3148.0,3147.7,5.75662722]
[1642553184139,0.79735212,3148.0,3147.7,5.75662722]
[1642553184684,0.79735212,3148.0,3147.8,1.23261095]
[1642553185283,0.79735212,3148.0,3147.7,5.75662722]
[1642553186083,0.79735212,3148.0,3147.7,2.722e-05]
[1642553186084,4.02122318,3148.0,3147.7,2.722e-05]
[1642553186284,4.81593488,3148.0,3147.7,2.722e-05]
[1642553186486,1.0,3147.9,3147.7,2.722e-05]
[1642553186685,0.79735212,3148.0,3147.7,2.722e-05]
[1642553186887,0.00170527,3147.8,3147.7,2.722e-05]
[1642553187088,0.00227369,3147.9,3147.7,2.722e-05]
[1642553187286,0.00170527,3147.8,3147.7,2.722e-05]
[1642553190543,0.00170527,3147.8,3147.6,1.13406137]
[1642553190741,0.79454,3147.7,3147.6,1.13406137]
[1642553190942,0.79567685,3147.7,3147.6,1.13406137]
[1642553191542,0.79567685,3147.7,3147.4,1.59524113]
[1642553192397,0.79567685,3147.7,3147.1,0.00113684]
[1642553192594,0.79567685,3147.7,3147.3,1.56189898]
[1642553192992,0.79567685,3147.7,3147.1,0.00227369]
[1642553193199,0.79478,3147.5,3147.1,0.00227369]
[1642553193393,0.79478,3147.5,3147.2,1.59524113]
[1642553193799,0.79478,3147.5,3147.3,0.00113685]
[1642553194802,0.79478,3147.5,3147.1,0.00227369]
[1642553195004,0.79478,3147.5,3147.2,1.40639362]
[1642553195201,0.79478,3147.5,3147.2,3.00163475]
[1642553195402,2.59154571,3147.9,3147.3,0.00113685]
[1642553195602,2.59154571,3147.9,3147.3,0.0022737]
[1642553195802,1.0,3147.8,3147.3,0.0022737]
[1642553196639,0.79478,3147.5,3147.3,0.0022737]
[1642553197738,0.79478,3147.5,3147.3,1.59751483]
[1642553198141,0.79478,3147.5,3147.4,0.00170527]
[1642553199244,0.79478,3147.5,3147.3,0.0022737]
[1642553199687,0.79478,3147.5,3147.4,1.59524113]
[1642553200089,0.79478,3147.5,3147.4,1.5969464]
[1642553200889,1.07495844,3147.5,3147.4,1.5969464]
[1642553201088,5.31100276,3147.5,3147.4,1.5969464]
[1642553201291,5.15,3147.4,3147.1,2.4169697]
[1642553201487,4.26514167,3147.3,3147.1,2.4169697]
[1642553201688,5.72014167,3147.3,3147.2,0.00113685]
[1642553201888,5.72014167,3147.3,3146.9,0.05005]
[1642553201889,5.15,3147.2,3146.9,0.05005]
[1642553202088,4.31442706,3147.1,3146.9,0.05005]
[1642553202290,4.55,3146.9,3146.3,4.02341173]
[1642553202491,3.36704475,3146.8,3146.3,4.02341173]
[1642553202794,0.748,3146.8,3146.4,0.00454739]
[1642553203639,0.748,3146.8,3146.2,0.00568424]
[1642553203840,4.38506,3146.9,3146.7,1.2390039]